[Event "Carolinas Classic 2022"]
[Site "Charlotte"]
[Date "2022.06.11"]
[Round "2.2"]
[White "Wen, Yili"]
[Black "Shabalov, Alexander"]
[Result "0-1"]
[ECO "A37"]
[WhiteElo "2122"]
[BlackElo "2504"]
[Annotator "TA"]
[PlyCount "46"]
[EventDate "2022.06.10"]
[EventType "swiss"]
[EventCountry "USA"]
[SourceTitle "playchess.com"]
[Source "ChessBase"]
[SourceQuality "1"]
[TimeControl "5400+30"]

{[%evp 12,46,39,38,50,54,68,58,54,22,103,0,0,-25,0,-32,-26,-47,0,-162,-158,-154,-157,-195,-191,-199,-191,-196,-196,-185,-193,-280,-219,-711,-729,-1138,-1097]} 1. c4 {[%emt 0:00:03]} c5 {[%emt 0:00:09]} 2. Nf3 {[%emt 0:00:24]} Nc6 {[%emt 0:00:06]} 3. Nc3 {[%emt 0:00:08]} g6 {[%emt 0:00:16]} 4. g3 {[%emt 0:02:23]} Bg7 {[%emt 0:00:08]} 5. Bg2 {[%emt 0:00:04]} d6 {[%emt 0:00:05]} 6. O-O {[%emt 0:00:16]} Qd7 {[%emt 0:00:05] 6...e6 is setting a new trend.} 7. e3 {[%emt 0:15:31]} Bxc3 {[%emt 0:01:09] A37: Symmetrical English vs ...g6: 4 Bg2 Bg7 5 Nf3.} 8. bxc3 {[%emt 0:01:01]} b6 {[%emt 0:00:06]} 9. d3 {[%emt 0:00:55]} Bb7 {[%emt 0:00:05] White is slightly better.} 10. a4 {[%emt 0:18:02] [#]} f5 $146 {[%emt 0:01:09] [#]} (10... Na5 $11 {remains equal.}) ({Predecessor:} 10... e6 11. e4 h6 12. Qe2 Nge7 13. Re1 O-O-O 14. Nd2 Na5 15. Qd1 Kb8 16. Nb3 Nec6 17. Nxa5 Nxa5 {0-1 (55) Fernandez Garcia,F (2070)-Kohlweyer,B (2422) Figueres 2014}) 11. Qe2 {[%emt 0:06:31]} (11. e4 $1 $16) 11... Nf6 {[%emt 0:00:30]} 12. Nd2 {[%emt 0:01:09]} h5 {[%emt 0:01:29][%cal Bh7h5,Bh5h4][%mdl 32]} 13. e4 {[%emt 0:17:02]} h4 $1 {[%emt 0:00:16]} 14. Re1 {[%emt 0:08:26]} e5 {[%emt 0:03:23]} (14... O-O-O $15 {should be considered.}) 15. f3 $2 {[%emt 0:00:51]} (15. Nb3 $11) 15... O-O-O {[%emt 0:01:45]} 16. Nf1 {[%emt 0:05:21]} Rdf8 {[%emt 0:05:41] Black is more active.} 17. Ne3 {[%emt 0:04:16]} hxg3 {[%emt 0:03:11]} 18. hxg3 {[%emt 0:00:02]} Qh7 {[%emt 0:02:24]} 19. Nf1 {[%emt 0:00:27]} Kc7 {[%emt 0:03:59]} 20. Bg5 {[%emt 0:01:02]} Nh5 {[%emt 0:02:09]} 21. Bc1 {[%emt 0:14:28]} (21. a5 {might work better.} Nxa5 22. Reb1) 21... Na5 {[%emt 0:07:08]} 22. g4 $2 {[%emt 0:02:03]} (22. Bg5) 22... fxg4 $19 {[%emt 0:00:25]} 23. fxg4 {[%emt 0:00:07] [#]} Ng3 $1 {[%emt 0:00:15][%mdl 512] Weighted Error Value: White=0.88/Black=0.15 (very precise)} 0-1

[Event "Carolinas Classic 2022"]
[Site "Charlotte"]
[Date "2022.06.11"]
[Round "2.3"]
[White "Brodsky, David"]
[Black "Chen, Alex"]
[Result "1-0"]
[ECO "B76"]
[WhiteElo "2484"]
[BlackElo "1986"]
[Annotator "TA"]
[PlyCount "81"]
[EventDate "2022.06.10"]
[EventType "swiss"]
[EventCountry "USA"]
[SourceTitle "playchess.com"]
[Source "ChessBase"]
[SourceQuality "1"]
[TimeControl "5400+30"]

{[%evp 21,81,0,18,18,15,0,0,0,30,48,63,83,72,0,30,30,40,42,47,0,45,47,47,52,60,75,66,54,57,59,139,146,233,205,285,198,230,156,173,170,185,173,183,182,190,170,320,345,495,477,502,499,493,473,651,634,822,814,995,931,993,943]} 1. e4 {[%emt 0:00:01]} c5 {[%emt 0:06:53]} 2. Nf3 {[%emt 0:00:22]} d6 {[%emt 0:00:24]} 3. d4 {[%emt 0:00:04]} cxd4 {[%emt 0:00:04]} 4. Nxd4 {[%emt 0:00:04]} Nf6 {[%emt 0:00:07]} 5. Nc3 {[%emt 0:00:02]} g6 {[%emt 0:00:29]} 6. Be3 {[%emt 0:00:06]} Bg7 {[%emt 0:00:07]} 7. f3 {[%emt 0:00:05]} O-O {[%emt 0:00:28]} 8. Qd2 {[%emt 0:00:03]} Nc6 {[%emt 0:00:04]} 9. O-O-O {[%emt 0:00:04]} d5 {[%emt 0:00:28]} 10. Nxc6 {[%emt 0:00:06]} bxc6 {[%emt 0:00:09]} 11. Bc4 {[%emt 0:00:05] 11.Bh6 is setting a new trend.} e6 {[%emt 0:05:32]} 12. Bb3 {[%emt 0:00:25] B76: Sicilian Dragon: Yugoslav Attack, 9 g4 and 9 0-0-0.} Qc7 {[%emt 0:02:29]} 13. h4 {[%emt 0:09:00][%cal Oh4h5]} dxe4 {[%emt 0:14:21] [#]} (13... Bb7 $5 {[%cal Rd5e4]}) 14. fxe4 $146 {[%emt 0:04:34] The position is equal.} ({Predecessor:} 14. Nxe4 Nxe4 15. fxe4 Bb7 16. h5 Qe5 17. c3 c5 18. hxg6 hxg6 19. Bh6 Bf6 20. Qe2 Qxe4 21. Qxe4 Bxe4 22. Rhe1 Bf5 23. Rf1 Bg7 {½-½ (23) Monte,L (1733)-Ferreyra,D (1794) Mar del Plata 2019}) 14... Ng4 {[%emt 0:10:30]} 15. Bf4 $1 {[%emt 0:07:42]} Be5 {[%emt 0:29:44]} 16. Bxe5 {[%emt 0:01:20]} Qxe5 {[%emt 0:01:53]} 17. Qd6 {[%emt 0:17:09]} (17. h5 $1 $16) 17... Qxd6 {[%emt 0:08:56]} 18. Rxd6 {[%emt 0:00:08]} Ne5 $1 {[%emt 0:00:18]} 19. Na4 {[%emt 0:01:49]} Rb8 {[%emt 0:01:16]} 20. Rhd1 {[%emt 0:06:02]} (20. Rh3 $14) 20... Ba6 {[%emt 0:02:16]} 21. Nc5 {[%emt 0:04:19]} Bc4 {[%emt 0:00:45]} 22. Bxc4 {[%emt 0:06:58]} Nxc4 {[%emt 0:00:03]} 23. Rxc6 {[%emt 0:00:07]} Nxb2 {[%emt 0:06:39]} 24. Rd7 {[%emt 0:10:18]} Nc4 {[%emt 0:02:09] Strongly threatening ...Ne5.} 25. Rxa7 {[%emt 0:00:26][%cal Oc5e6] Hoping for Nxe6!} Ne5 {[%emt 0:01:43] [#] White leaves nothing to chance now.} ({Black should try} 25... Rbc8 $14 26. Rac7 Rxc7 27. Rxc7 Ne3) 26. Rcc7 $1 $16 {[%emt 0:00:16] White is more active.} Rb4 {[%emt 0:01:02]} (26... Ra8 $16) 27. a3 {[%emt 0:02:39]} Rc4 {[%emt 0:00:45] [#]} 28. Nxe6 $1 {[%emt 0:00:48][%mdl 512]} Re8 {[%emt 0:00:56]} (28... fxe6 $2 {gets mated.} 29. Rg7+ Kh8 30. Rxh7+ Kg8 31. Rag7#) (28... Rc8 29. Rxc8+) 29. Ng5 {[%emt 0:02:25]} Rxc7 {[%emt 0:00:56]} 30. Rxc7 {[%emt 0:00:07][%mdl 4096] Endgame KRN-KRN} h6 {[%emt 0:00:33]} 31. Nf3 {[%emt 0:00:25]} Ng4 {[%emt 0:00:10]} 32. Nd2 {[%emt 0:01:47]} Ra8 {[%emt 0:00:45]} 33. Kb2 {[%emt 0:01:15]} Rd8 {[%emt 0:00:08] [#]} (33... Ne3 $142 34. g3 h5) 34. Nc4 $1 $18 {[%emt 0:02:16]} Rd4 {[%emt 0:01:56]} (34... Ra8 {is a better defense.} 35. Nd6 Ne5 36. Rc8+ Rxc8 37. Nxc8 Kf8) 35. a4 {[%emt 0:03:05][%cal Ba3a4,Ba4a5][%mdl 32] Black must now prevent a5. White is clearly winning.} Rxe4 {[%emt 0:00:19]} 36. a5 {[%emt 0:00:06] aiming for a6.} Re6 {[%emt 0:00:52]} 37. Rb7 {[%emt 0:00:33]} Ra6 {[%emt 0:01:08]} 38. Kb3 {[%emt 0:00:40]} Nf2 {[%emt 0:00:42]} 39. Kb4 {[%emt 0:00:26]} Ne4 {[%emt 0:00:06]} 40. Nb6 {[%emt 0:00:49]} Nd6 {[%emt 0:00:53]} 41. Rd7 {[%emt 0:00:16] Weighted Error Value: White=0.12 (very precise) /Black=0.38} 1-0

[Event "Carolinas Classic 2022"]
[Site "Charlotte"]
[Date "2022.06.11"]
[Round "2.4"]
[White "Brady, Tyson"]
[Black "Panchanathan, Magesh Chandran"]
[Result "1-0"]
[ECO "C69"]
[WhiteElo "2064"]
[BlackElo "2474"]
[Annotator "TA"]
[PlyCount "99"]
[EventDate "2022.06.10"]
[EventType "swiss"]
[EventCountry "USA"]
[SourceTitle "playchess.com"]
[Source "ChessBase"]
[SourceQuality "1"]
[TimeControl "5400+30"]

{[%evp 21,99,4,25,6,28,26,22,-4,22,22,21,21,25,18,17,23,21,16,18,0,16,15,48,45,42,38,38,20,20,0,0,0,0,0,0,0,0,0,0,0,0,0,0,0,0,0,0,0,0,0,155,155,267,71,267,254,221,128,130,132,441,402,456,421,816,841,815,793,958,900,12840,12839,2595,1409,12840,12834,12839,12839,12833,5370]} 1. e4 {[%emt 0:00:07]} e5 {[%emt 0:01:00]} 2. Nf3 {[%emt 0:00:04]} Nc6 {[%emt 0:00:18]} 3. Bb5 {[%emt 0:00:06]} a6 {[%emt 0:00:14]} 4. Bxc6 {[%emt 0:00:11]} dxc6 {[%emt 0:00:06]} 5. O-O {[%emt 0:00:07]} f6 {[%emt 0:03:04]} 6. d4 {[%emt 0:00:08]} exd4 {[%emt 0:00:06]} 7. Nxd4 {[%emt 0:00:04]} c5 {[%emt 0:00:41]} 8. Ne2 {[%emt 0:00:03]} Qxd1 {[%emt 0:00:09]} 9. Rxd1 {[%emt 0:00:03]} Bd7 {[%emt 0:00:16]} 10. Nbc3 {[%emt 0:00:10]} O-O-O {[%emt 0:03:26]} 11. Be3 {[%emt 0:00:10]} Re8 {[%emt 0:03:35]} 12. Rd2 {[%emt 0:01:03] C69: Ruy Lopez: Exchange Variation with 5 0-0 f6.} b6 {[%emt 0:00:50]} 13. Rad1 {[%emt 0:01:15]} Bc6 {[%emt 0:00:10]} 14. Nf4 {[%emt 0:20:41][%cal Of4e6,Be2f4,Bf4d5,Bd5e3][%mdl 32] Ne6! is the strong threat. The position is equal.} Nh6 {[%emt 0:03:55]} (14... Bd6 $5 {[%cal Rc6e4]}) 15. Nfd5 {[%emt 0:03:50]} Nf7 {[%emt 0:00:49]} 16. Bf4 {[%emt 0:00:08]} Ne5 {[%emt 0:00:43]} 17. Ne3 {[%emt 0:04:53]} g6 {[%emt 0:01:30]} 18. Ncd5 {[%emt 0:07:28]} Bg7 {[%emt 0:02:46]} 19. f3 {[%emt 0:00:27]} Rhf8 {[%emt 0:00:21]} 20. h4 {[%emt 0:06:49][%cal Oh4h5]} Rf7 {[%emt 0:02:21] [#]} 21. h5 $146 {[%emt 0:01:34]} ({Predecessor:} 21. Kf2 h5 22. Bg3 b5 23. b3 Bh6 24. Bf4 Bf8 25. g4 hxg4 26. Bxe5 fxe5 27. Nxg4 {1-0 (57) Kalvaitis,S (2272)-Lund,S (2412) Kaunas 2009}) 21... Bf8 {[%emt 0:00:53]} 22. Bxe5 {[%emt 0:08:08]} fxe5 {[%emt 0:00:17]} 23. hxg6 {[%emt 0:05:17]} hxg6 {[%emt 0:02:26]} 24. c4 {[%emt 0:00:00]} (24. Kf2 {is interesting.} Bh6 25. Rh1 Rh8 26. Ke2) 24... Bh6 {[%emt 0:02:32] aiming for ...Bxd5.} 25. Rd3 {[%emt 0:00:40]} Bd7 {[%emt 0:00:37]} 26. Kf2 {[%emt 0:06:51][%cal Od5f6]} Rh8 {[%emt 0:00:08]} 27. Nf6 {[%emt 0:05:08][%cal Rf6d7] Pair of Knights!} Ba4 {[%emt 0:05:01]} 28. b3 {[%emt 0:00:05]} Bxb3 {[%emt 0:05:24]} 29. axb3 {[%emt 0:00:06]} Bxe3+ {[%emt 0:00:13]} 30. Kxe3 {[%emt 0:00:03]} Rxf6 $11 {[%emt 0:00:05][%mdl 4096] Endgame KRR-KRR} 31. Rd7 {[%emt 0:00:45]} Rh2 {[%emt 0:08:49]} 32. Kf2 {[%emt 0:01:31]} Re6 {[%emt 0:02:20]} 33. Rg7 {[%emt 0:02:23]} Rh5 {[%emt 0:00:10]} 34. Rdd7 {[%emt 0:00:33]} Rc6 {[%emt 0:00:05]} 35. Rd5 {[%emt 0:04:26]} Rh1 $2 {[%emt 0:21:35]} (35... Kb7 $11) 36. Rxe5 $16 {[%emt 0:04:14] Threatens to win with Re8+.} Rb1 {[%emt 0:00:06]} (36... Rh8 $16 {might work better.} 37. f4 b5) 37. Re8+ $1 $18 {[%emt 0:00:04]} Kb7 {[%emt 0:00:04]} 38. e5 $1 {[%emt 0:00:26]} b5 {[%emt 0:07:24] [#]} 39. e6 {[%emt 0:03:23]} (39. Rgg8 $1 $18 {White wants to mate with Rb8+.} Rb2+ 40. Kg3) 39... Rb2+ {[%emt 0:00:44]} 40. Kg3 {[%emt 0:04:12] White is much more active.} Re2 $2 {[%emt 0:01:00][%mdl 8192] This move loses the game for Black.} (40... Rd6 $16 {is a better chance.}) 41. Rxg6 {[%emt 0:00:13]} bxc4 {[%emt 0:00:04]} 42. bxc4 {[%emt 0:00:06] Strongly threatening f4. White is clearly winning.} a5 {[%emt 0:00:12] [#]} (42... Rd6 $142 43. f4 Re4) 43. f4 $1 {[%emt 0:01:58][%cal Bf3f4,Bf4f5][%mdl 32]} a4 {[%emt 0:00:04]} 44. f5 {[%emt 0:00:21] Black must now prevent e7.} a3 {[%emt 0:02:06]} 45. Rgg8 {[%emt 0:00:04]} Ra6 {[%emt 0:02:33]} 46. Rb8+ {[%emt 0:00:06]} Kc6 {[%emt 0:00:04]} 47. Ra8 {[%emt 0:01:38]} Rxa8 {[%emt 0:02:30]} 48. Rxa8 {[%emt 0:00:05]} a2 {[%emt 0:00:04]} 49. Kf3 {[%emt 0:00:43]} Re5 {[%emt 0:00:37]} 50. g4 {[%emt 0:00:18] Weighted Error Value: White=0.07 (flawless) /Black=0.41} 1-0

[Event "Carolinas Classic 2022"]
[Site "Charlotte"]
[Date "2022.06.11"]
[Round "2.5"]
[White "Ippolito, Dean"]
[Black "Biernacki, Mark"]
[Result "1-0"]
[ECO "E62"]
[WhiteElo "2375"]
[BlackElo "1925"]
[Annotator "TA"]
[PlyCount "91"]
[EventDate "2022.06.10"]
[EventType "swiss"]
[EventCountry "USA"]
[SourceTitle "playchess.com"]
[Source "ChessBase"]
[SourceQuality "1"]
[TimeControl "5400+30"]

{[%evp 13,91,15,52,44,52,41,72,67,76,74,77,58,80,74,93,69,71,37,64,54,66,68,83,69,85,75,52,22,33,32,156,156,229,83,224,215,229,0,0,-38,-30,-74,140,124,152,97,197,190,179,157,170,132,128,131,131,128,123,36,84,83,85,79,83,8,8,8,8,8,8,8,597,608,606,496,605,598,599,564,619,599]} 1. d4 {[%emt 0:00:03] Keymer,V} Nf6 {[%emt 0:13:03]} 2. c4 {[%emt 0:00:04]} g6 {[%emt 0:00:05]} 3. g3 {[%emt 0:00:09]} Bg7 {[%emt 0:00:05]} 4. Bg2 {[%emt 0:00:04]} d6 {[%emt 0:00:06]} 5. Nf3 {[%emt 0:00:10]} O-O {[%emt 0:00:07]} 6. Nc3 {[%emt 0:00:05]} c6 {[%emt 0:00:04]} 7. e4 {[%emt 0:00:45]} Bg4 {[%emt 0:00:14]} 8. h3 {[%emt 0:00:51] E62: King's Indian: Fianchetto: 6...c6 and Panno Variation (6...Nc6) without ...a6.} Bxf3 {[%emt 0:00:04]} 9. Bxf3 {[%emt 0:00:03]} e5 {[%emt 0:00:08] Threatens to win with ...exd4.} 10. d5 {[%emt 0:01:35] White is better.} cxd5 {[%emt 0:01:06]} 11. cxd5 {[%emt 0:00:07] [#]} (11. Nxd5 $6 Nxd5 12. cxd5 Nd7 $11) 11... Na6 $146 {[%emt 0:00:06]} ({Predecessor:} 11... a5 12. Be3 Na6 13. h4 h5 14. g4 hxg4 15. Bxg4 Nxg4 16. Qxg4 Nb4 17. h5 f5 18. Qxg6 {1-0 (28) Keymer,V (2558)-Naiditsch,A (2626) Biel 2020 CBM 197 [Keymer,V]}) 12. O-O {[%emt 0:00:47]} Qd7 {[%emt 0:04:50]} 13. Kg2 {[%emt 0:09:59]} b5 {[%emt 0:02:48]} 14. Qe2 {[%emt 0:01:11]} Nc7 {[%emt 0:06:01]} 15. a4 {[%emt 0:18:23][%cal Ra4b5]} b4 {[%emt 0:01:40]} 16. Nd1 {[%emt 0:01:10]} (16. Nb5 Nce8 $11) 16... a5 {[%emt 0:01:13]} 17. Ne3 {[%emt 0:00:22]} Na6 {[%emt 0:07:16]} 18. Nc4 {[%emt 0:00:16]} Qc7 $1 {[%emt 0:03:03] Against Nb6} 19. Be3 $36 {[%emt 0:00:07][%mdl 2048] Hoping for Rac1. Black is under strong pressure.} Nd7 {[%emt 0:01:27]} 20. Rfc1 {[%emt 0:05:34][%cal Oc4d6]} Nac5 {[%emt 0:11:29]} 21. Qc2 {[%emt 0:01:28][%cal Oc4d6]} Rfc8 {[%emt 0:12:00]} ({Better is} 21... Rac8 $14) 22. Bg4 $1 $16 {[%emt 0:02:25]} Ra6 {[%emt 0:10:52]} (22... h5 $16) 23. Nxd6 {[%emt 0:11:06]} Qxd6 {[%emt 0:02:00]} (23... Rxd6 $16 24. Bxc5 (24. Bxd7 Qxd7 25. Qc4 Bf8 $14) 24... Bf8) 24. Bxd7 $18 {[%emt 0:00:55][%mdl 64] Remove Defender} Qxd7 {[%emt 0:00:05]} 25. Bxc5 {[%emt 0:03:09]} ({Only move:} 25. Qe2 $1 $18) 25... Bh6 $11 {[%emt 0:00:43]} 26. Rd1 {[%emt 0:15:19]} Rd6 {[%emt 0:04:24][%mdl 1024] And now ...f5 would win. Black has compensation.} 27. f4 {[%emt 0:00:05]} Qc7 $2 {[%emt 0:00:12] [#]} (27... exf4 $17 {[%cal Of4f3] keeps the pressure on. ...f3+! is the strong threat.} 28. Qf2 fxg3 29. Kxg3 Re8) 28. Qd2 $1 $16 {[%emt 0:03:12]} Rf6 {[%emt 0:06:01][%cal Re5f4]} (28... Qxc5 $2 29. Rac1 $18) (28... Rdd8 29. Be3) 29. Be3 {[%emt 0:01:20]} ({White should try} 29. Rac1 exf4 30. Bd4) 29... Qc4 {[%emt 0:02:20]} (29... Qe7 $16 {was called for.} 30. f5 Bxe3 31. Qxe3 gxf5) 30. Qd3 $1 $18 {[%emt 0:00:25]} Qxd3 {[%emt 0:01:09]} 31. Rxd3 {[%emt 0:00:03]} exf4 {[%emt 0:00:07]} 32. e5 {[%emt 0:06:48]} Rf5 {[%emt 0:02:26]} 33. gxf4 {[%emt 0:00:21]} Bxf4 {[%emt 0:00:44]} 34. Bxf4 {[%emt 0:00:05]} Rxf4 $16 {[%emt 0:00:09][%mdl 4096] Endgame KRR-KRR} 35. Re1 {[%emt 0:00:08] Inhibits Re4.} (35. d6 $16) 35... Rfc4 {[%emt 0:03:01]} (35... h5 $14) 36. d6 {[%emt 0:19:56]} Rc2+ {[%emt 0:00:14]} 37. Kg3 {[%emt 0:00:00] White is more active.} Rxb2 {[%emt 0:02:07]} 38. d7 {[%emt 0:00:00]} (38. e6 $16 {White threatens e7 and mate.} fxe6 39. Rxe6 (39. d7 Rd8 $14)) 38... Rd8 $11 {[%emt 0:00:04]} 39. e6 {[%emt 0:00:00]} fxe6 {[%emt 0:00:04]} 40. Rxe6 {[%emt 0:00:00]} Kf7 {[%emt 0:00:08] Prevents Re8.} 41. Re5 {[%emt 0:00:00] Black must now prevent Rf3+.} g5 $2 {[%emt 0:03:09][%mdl 8192]} (41... b3 $2 42. Rf3+ Kg7 43. Re7+ Kg8 44. Re8+ Kg7 45. Rxd8 $18) (41... Rc2 $11) 42. Rf3+ $1 $18 {[%emt 0:00:00] White is clearly winning.} Kg6 {[%emt 0:00:09] [#]} 43. Re6+ $1 {[%emt 0:00:00]} Kg7 {[%emt 0:00:14]} 44. Re7+ {[%emt 0:00:00]} Kg6 {[%emt 0:00:05] [#]} 45. Rd3 $1 {[%emt 0:00:19]} Rc2 {[%emt 0:02:50]} 46. Re8 {[%emt 0:01:42][%mdl 64] Trapped Piece.  Weighted Error Value: White=0.24 (precise) /Black=0.46} 1-0

[Event "Carolinas Classic 2022"]
[Site "Charlotte"]
[Date "2022.06.11"]
[Round "3.1"]
[White "Naroditsky, Daniel"]
[Black "Horobetz, Graham"]
[Result "1-0"]
[ECO "B51"]
[WhiteElo "2616"]
[BlackElo "2045"]
[Annotator "TA"]
[PlyCount "27"]
[EventDate "2022.06.10"]
[EventType "swiss"]
[EventCountry "USA"]
[SourceTitle "playchess.com"]
[Source "ChessBase"]
[SourceQuality "1"]
[TimeControl "5400+30"]

{[%evp 9,27,22,33,33,94,108,118,117,133,95,136,118,234,220,358,339,370,387,454,431]} 1. e4 {[%emt 0:00:04]} c5 {[%emt 0:00:08]} 2. Nf3 {[%emt 0:00:06]} d6 {[%emt 0:00:04]} 3. Bb5+ {[%emt 0:00:22]} Nd7 {[%emt 0:00:08]} 4. O-O {[%emt 0:00:15]} a6 {[%emt 0:00:23]} 5. Bd3 {[%emt 0:00:29]} b5 {[%emt 0:00:37]} 6. c4 {[%emt 0:03:24] [#] B51: Sicilian: Moscow Variation (3 Bb5+) without 3...Bd7.} Nb6 $146 {[%emt 0:10:08]} (6... bxc4 $14 7. Bxc4 Nb6) ({Predecessor:} 6... b4 7. a3 Bb7 8. axb4 cxb4 9. Bc2 Ngf6 10. Re1 e5 11. d4 Be7 12. b3 O-O {0-1 (41) Hammer,J (2682)-Vovk,A (2617) Chess.com INT 2015}) 7. cxb5 $16 {[%emt 0:02:53]} c4 {[%emt 0:00:07]} 8. Be2 {[%emt 0:03:58] White is better.} axb5 {[%emt 0:00:44]} 9. Nd4 {[%emt 0:06:20]} Qd7 {[%emt 0:16:08]} 10. Nc3 {[%emt 0:06:11]} Ba6 {[%emt 0:14:07]} (10... b4 $16 {keeps fighting.}) 11. a4 $18 {[%emt 0:06:25][%cal Ba2a4,Ba4a5][%mdl 32]} b4 {[%emt 0:00:38]} (11... Nf6 $142 12. axb5 Bb7) 12. a5 {[%emt 0:02:35]} Nc8 {[%emt 0:05:35]} 13. Nd5 {[%emt 0:03:22]} Rb8 {[%emt 0:06:57] Against Nb6} 14. Qa4 {[%emt 0:03:07] White took control after the opening.  Weighted Error Value: White=0.05 (flawless) /Black=0.53} 1-0

[Event "Carolinas Classic 2022"]
[Site "Charlotte"]
[Date "2022.06.12"]
[Round "3.3"]
[White "Shabalov, Alexander"]
[Black "Prabhu, Naveen"]
[Result "1-0"]
[ECO "A03"]
[WhiteElo "2504"]
[BlackElo "2099"]
[Annotator "TA"]
[PlyCount "63"]
[EventDate "2022.06.10"]
[EventType "swiss"]
[EventCountry "USA"]
[SourceTitle "playchess.com"]
[Source "ChessBase"]
[SourceQuality "1"]
[TimeControl "5400+30"]

{[%evp 14,63,-27,-24,0,-18,3,-33,0,-13,0,0,62,77,63,25,98,106,117,104,194,185,186,233,193,171,186,126,226,218,222,242,222,183,537,530,530,530,745,763,742,738,830,823,822,818,802,789,851,819,29996,29997]} 1. f4 {[%emt 0:05:23]} d5 {[%emt 0:03:41]} 2. Nf3 {[%emt 0:00:07]} Nf6 {[%emt 0:02:18]} 3. g3 {[%emt 0:00:06]} g6 {[%emt 0:03:21]} 4. Bg2 {[%emt 0:00:06]} Bg7 {[%emt 0:00:06]} 5. d3 {[%emt 0:00:04]} O-O {[%emt 0:02:30]} 6. O-O {[%emt 0:00:05]} c5 {[%emt 0:02:05]} 7. c3 $1 {[%emt 0:01:48] 7.c3 scores better than 7.Qe1.} Nc6 {[%emt 0:00:48]} 8. Na3 {[%emt 0:00:06]} Bg4 {[%emt 0:08:24] A03: Bird's Opening with 1...d5.} 9. Qe1 {[%emt 0:03:43] [#]} Qb6 $146 {[%emt 0:12:52]} ({Predecessor:} 9... Qc8 10. Nc2 Bh3 11. e4 Bxg2 12. Kxg2 dxe4 13. dxe4 e5 14. fxe5 Ng4 15. Bf4 Ngxe5 16. Nxe5 Nxe5 17. Bxe5 Bxe5 {0-1 (61) Bachofner,S (1871)-Angst,O (1749) Zuerich 2015}) 10. Kh1 {[%emt 0:02:26]} (10. e4 {keeps more tension.} c4+ 11. d4 Nxe4 12. Nxc4 Qa6 13. Ne3) 10... Rad8 {[%emt 0:03:14] Black is slightly better.} (10... Rae8 $5 {[%cal Re7e5]}) 11. e4 {[%emt 0:03:00]} dxe4 {[%emt 0:01:23]} 12. dxe4 {[%emt 0:00:03]} Bxf3 {[%emt 0:00:37]} (12... Qa6 $11) 13. Bxf3 $14 {[%emt 0:00:29]} e5 {[%emt 0:00:26]} 14. Nc4 {[%emt 0:06:10]} Qc7 {[%emt 0:01:36]} (14... Qa6 $1 $11 15. Qe2 (15. Nxe5 Nxe5 16. fxe5 Nd7 $11) 15... Rfe8) 15. f5 $16 {[%emt 0:02:04]} gxf5 {[%emt 0:10:16]} 16. Bg5 {[%emt 0:01:02]} Rde8 {[%emt 0:15:22]} (16... h6 $16 17. Bxf6 Bxf6) 17. exf5 $18 {[%emt 0:10:03]} e4 {[%emt 0:04:34]} 18. Bg2 {[%emt 0:06:02]} Qe7 {[%emt 0:02:37]} 19. Ne3 {[%emt 0:03:20]} Rd8 {[%emt 0:02:25]} 20. g4 {[%emt 0:06:29]} (20. Qe2 $18) 20... h6 {[%emt 0:05:28]} (20... Ne5 $16) 21. Bh4 {[%emt 0:02:47]} Ne5 {[%emt 0:00:53] [#]} 22. g5 $1 {[%emt 0:01:35]} ({Worse is} 22. Bxe4 Nd3 23. Bxd3 Rxd3 $11) 22... hxg5 {[%emt 0:00:48]} 23. Bxg5 {[%emt 0:00:05] Threatens to win with Rg1.} Nf3 $2 {[%emt 0:01:21]} (23... Rd6 {is a better chance.} 24. Qg3 Rfd8 25. Bxf6 Qxf6) 24. Bxf3 {[%emt 0:00:23]} exf3 {[%emt 0:00:02]} 25. Qh4 {[%emt 0:00:11]} f2 {[%emt 0:02:38]} 26. Rxf2 {[%emt 0:01:38]} Qe4+ {[%emt 0:02:17]} 27. Rg2 {[%emt 0:00:06] Black must now prevent Rag1.} Qxh4 {[%emt 0:04:56]} 28. Bxh4 {[%emt 0:00:05]} Kh7 {[%emt 0:00:08] [#]} 29. Rxg7+ $1 {[%emt 0:02:06][%mdl 512]} Kxg7 {[%emt 0:00:06]} 30. Rg1+ {[%emt 0:00:05][%mdl 64] Deflection} Kh7 {[%emt 0:00:07]} 31. Bxf6 {[%emt 0:00:04] Threatening mate with Rg4.} Rd2 {[%emt 0:00:15]} 32. Rg3 {[%emt 0:00:41] Weighted Error Value: White=0.10 (very precise) /Black=0.88} 1-0